[Event "Chinese Championship-B Women 2024"]
[Site "Liaocheng"]
[Date "2024.04.24"]
[Round "2.2"]
[White "Pian, Junyao"]
[Black "Hu, Yu A."]
[Result "1/2-1/2"]
[WhiteElo "1717"]
[BlackElo "2148"]
[PlyCount "67"]
[EventDate "2024.04.24"]
[EventType "swiss"]
[EventCountry "CHN"]
[TimeControl "5400+30"]

1. e4 {[%emt 0:02:13]} e5 {[%emt 0:03:15]} 2. Nf3 {[%emt 0:00:34]} Nf6 {[%emt 0:02:20]} 3. Nxe5 {[%emt 0:00:55]} d6 {[%emt 0:00:16]} 4. Nf3 {[%emt 0:00:18]} Nxe4 {[%emt 0:00:08]} 5. Nc3 {[%emt 0:01:38]} Nxc3 {[%emt 0:00:15]} 6. dxc3 {[%emt 0:00:08]} Be7 {[%emt 0:00:07]} 7. Be3 {[%emt 0:00:56]} Nd7 {[%emt 0:01:23]} 8. Qd2 {[%emt 0:02:16]} O-O {[%emt 0:00:21]} 9. Bd3 {[%emt 0:01:41]} Nf6 {[%emt 0:00:24]} 10. c4 {[%emt 0:01:59]} c5 {[%emt 0:06:03]} 11. h3 {[%emt 0:04:32]} Bd7 {[%emt 0:05:45]} 12. O-O {[%emt 0:04:44]} Bc6 {[%emt 0:01:12]} 13. Qe2 {[%emt 0:05:36]} Re8 {[%emt 0:01:01]} 14. Rad1 {[%emt 0:05:29]} Qa5 {[%emt 0:06:26]} 15. a3 {[%emt 0:02:51]} Bf8 {[%emt 0:01:29]} 16. Nh2 {[%emt 0:06:03]} d5 {[%emt 0:08:05]} 17. Ng4 {[%emt 0:04:10]} Nxg4 {[%emt 0:07:11]} 18. Qxg4 {[%emt 0:00:25]} dxc4 {[%emt 0:03:27]} 19. Bxc4 {[%emt 0:04:35]} Re4 {[%emt 0:02:47]} 20. Qe2 {[%emt 0:00:38]} Rd8 {[%emt 0:06:27]} 21. Bd3 {[%emt 0:07:15]} Re6 {[%emt 0:03:03]} 22. Qh5 {[%emt 0:05:48]} g6 {[%emt 0:00:38]} 23. Qh4 {[%emt 0:02:43]} Rde8 {[%emt 0:06:12]} 24. Bd2 {[%emt 0:04:02]} Qc7 {[%emt 0:00:31]} 25. Bf4 {[%emt 0:01:11]} Bd6 {[%emt 0:03:23]} 26. Bxd6 {[%emt 0:02:20]} Rxd6 {[%emt 0:00:02]} 27. Qg3 {[%emt 0:08:12]} Rd7 {[%emt 0:02:57]} 28. Qxc7 {[%emt 0:02:02]} Rxc7 {[%emt 0:00:02]} 29. Rfe1 {[%emt 0:00:39]} Rce7 {[%emt 0:00:08]} 30. Rxe7 {[%emt 0:00:11]} Rxe7 {[%emt 0:00:02]} 31. f4 {[%emt 0:02:11]} Kg7 {[%emt 0:01:54]} 32. Kf2 {[%emt 0:01:02]} b5 {[%emt 0:03:44]} 33. b3 {[%emt 0:02:37]} h5 {[%emt 0:05:33]} 34. g3 {[%emt 0:02:28]} 1/2-1/2

[Event "Chinese Championship-B Women 2024"]
[Site "Liaocheng"]
[Date "2024.04.24"]
[Round "2.3"]
[White "Lou, Yuxin"]
[Black "Xu, Mingwei"]
[Result "1/2-1/2"]
[WhiteElo "1706"]
[BlackElo "2037"]
[PlyCount "157"]
[EventDate "2024.04.24"]
[EventType "swiss"]
[EventCountry "CHN"]
[TimeControl "5400+30"]

1. d4 {[%emt 0:00:03]} d5 {[%emt 0:00:10]} 2. c4 {[%emt 0:00:12]} e6 {[%emt 0:00:26]} 3. Nc3 {[%emt 0:00:23]} h6 {[%emt 0:00:07]} 4. Nf3 {[%emt 0:00:17]} Nf6 {[%emt 0:00:06]} 5. cxd5 {[%emt 0:00:20]} exd5 {[%emt 0:00:09]} 6. Bf4 {[%emt 0:00:24]} Bd6 {[%emt 0:01:14]} 7. Bxd6 {[%emt 0:00:25]} Qxd6 {[%emt 0:00:15]} 8. e3 {[%emt 0:00:54]} O-O {[%emt 0:02:50]} 9. Bd3 {[%emt 0:02:07]} Bg4 {[%emt 0:02:44]} 10. h3 {[%emt 0:01:00]} Bh5 {[%emt 0:01:27]} 11. O-O {[%emt 0:03:12]} c6 {[%emt 0:00:33]} 12. Be2 {[%emt 0:02:16]} Nbd7 {[%emt 0:04:46]} 13. Nd2 {[%emt 0:02:02]} Bxe2 {[%emt 0:00:14]} 14. Qxe2 {[%emt 0:00:09]} Rae8 {[%emt 0:00:25]} 15. Qd3 {[%emt 0:01:08]} Qe6 {[%emt 0:04:15]} 16. Rfe1 {[%emt 0:00:58]} Ne4 {[%emt 0:06:17]} 17. Ncxe4 {[%emt 0:02:04]} dxe4 {[%emt 0:00:23]} 18. Qb3 {[%emt 0:00:10]} Nb6 {[%emt 0:01:53]} 19. Qxe6 {[%emt 0:00:33]} Rxe6 {[%emt 0:00:11]} 20. Nb3 {[%emt 0:01:08]} f5 {[%emt 0:03:39]} 21. Nc5 {[%emt 0:00:38]} Re7 {[%emt 0:00:45]} 22. Rac1 {[%emt 0:01:14]} Nd5 {[%emt 0:04:38]} 23. a3 {[%emt 0:00:59]} g5 {[%emt 0:10:01]} 24. Rc2 {[%emt 0:03:05]} Rf6 {[%emt 0:09:14]} 25. Rce2 {[%emt 0:02:25]} h5 {[%emt 0:04:17]} 26. f3 {[%emt 0:06:32]} b6 {[%emt 0:11:51]} 27. Na4 {[%emt 0:02:44]} Rfe6 {[%emt 0:07:41]} 28. Nc3 {[%emt 0:05:54]} Nxc3 {[%emt 0:05:17]} 29. bxc3 {[%emt 0:00:10]} Kf7 {[%emt 0:00:17]} 30. Kf2 {[%emt 0:00:53]} Kf6 {[%emt 0:00:21]} 31. c4 {[%emt 0:01:19]} Rd7 {[%emt 0:02:42]} 32. Rd1 {[%emt 0:00:40]} Red6 {[%emt 0:01:41]} 33. Red2 {[%emt 0:01:24]} c5 {[%emt 0:02:49]} 34. d5 {[%emt 0:00:32]} Ke5 {[%emt 0:00:01]} 35. a4 {[%emt 0:00:42]} a6 {[%emt 0:03:08]} 36. Rb1 {[%emt 0:00:23]} Rb7 {[%emt 0:02:45]} 37. Rdb2 {[%emt 0:00:18]} b5 {[%emt 0:01:02]} 38. axb5 {[%emt 0:01:15]} Rdb6 {[%emt 0:00:01]} 39. d6 {[%emt 0:02:05]} axb5 {[%emt 0:02:56]} 40. d7 {[%emt 0:00:23]} Rxd7 {[%emt 0:00:02]} 41. Rxb5 {[%emt 0:00:11]} Rc6 {[%emt 0:00:18]} 42. Ke2 {[%emt 0:00:41]} Rd3 {[%emt 0:00:25]} 43. Rd1 {[%emt 0:00:30]} Rxd1 {[%emt 0:00:26]} 44. Kxd1 {[%emt 0:00:04]} f4 {[%emt 0:00:29]} 45. Ke2 {[%emt 0:00:17]} Kf5 {[%emt 0:01:16]} 46. Kf2 {[%emt 0:01:52]} g4 {[%emt 0:00:34]} 47. hxg4+ {[%emt 0:01:14]} hxg4 {[%emt 0:00:03]} 48. exf4 {[%emt 0:00:11]} Kxf4 {[%emt 0:00:56]} 49. fxg4 {[%emt 0:00:18]} e3+ {[%emt 0:00:47]} 50. Ke2 {[%emt 0:00:50]} Ke4 {[%emt 0:00:01]} 51. Rb3 {[%emt 0:01:13]} Kd4 {[%emt 0:00:56]} 52. Rxe3 {[%emt 0:00:13]} Kxc4 {[%emt 0:00:01]} 53. Kd2 {[%emt 0:00:14]} Ra6 {[%emt 0:02:55]} 54. Rc3+ {[%emt 0:00:20]} Kd4 {[%emt 0:00:06]} 55. Rd3+ {[%emt 0:00:20]} Ke4 {[%emt 0:00:07]} 56. Rc3 {[%emt 0:00:17]} Kd4 {[%emt 0:00:42]} 57. Rd3+ {[%emt 0:00:07]} Ke4 {[%emt 0:00:05]} 58. Rc3 {[%emt 0:00:06]} Ra2+ {[%emt 0:00:50]} 59. Rc2 {[%emt 0:00:10]} Ra5 {[%emt 0:00:06]} 60. Rc4+ {[%emt 0:04:23]} Kd5 {[%emt 0:00:30]} 61. Rc3 {[%emt 0:00:47]} Ra2+ {[%emt 0:00:09]} 62. Rc2 {[%emt 0:01:28]} Ra4 {[%emt 0:00:02]} 63. Kc3 {[%emt 0:00:33]} Rc4+ {[%emt 0:01:25]} 64. Kb3 {[%emt 0:00:07]} Rxg4 {[%emt 0:00:16]} 65. Rd2+ {[%emt 0:00:11]} Kc6 {[%emt 0:01:31]} 66. Kc3 {[%emt 0:00:11]} Rg3+ {[%emt 0:01:00]} 67. Kc4 {[%emt 0:00:18]} Re3 {[%emt 0:00:17]} 68. Rf2 {[%emt 0:00:20]} Re4+ {[%emt 0:00:08]} 69. Kd3 {[%emt 0:00:08]} Rg4 {[%emt 0:00:40]} 70. Kc3 {[%emt 0:00:08]} Kb5 {[%emt 0:01:01]} 71. Rb2+ {[%emt 0:00:07]} Kc6 {[%emt 0:00:14]} 72. Rf2 {[%emt 0:00:04]} Kd5 {[%emt 0:00:25]} 73. Rf5+ {[%emt 0:00:15]} Kd6 {[%emt 0:00:06]} 74. Rf2 {[%emt 0:00:10]} c4 {[%emt 0:01:55]} 75. g3 {[%emt 0:00:20]} Kd5 {[%emt 0:01:50]} 76. Rf5+ {[%emt 0:00:46]} Ke4 {[%emt 0:00:17]} 77. Rf4+ {[%emt 0:00:06]} Rxf4 {[%emt 0:00:04]} 78. gxf4 {[%emt 0:00:03]} Kxf4 {[%emt 0:00:08]} 79. Kxc4 {[%emt 0:57:07]} 1/2-1/2

[Event "Chinese Championship-B Women 2024"]
[Site "Liaocheng"]
[Date "2024.04.24"]
[Round "2.4"]
[White "Guo, Weibao"]
[Black "Guo, Hanxi"]
[Result "1/2-1/2"]
[WhiteElo "1954"]
[BlackElo "1699"]
[PlyCount "66"]
[EventDate "2024.04.24"]
[EventType "swiss"]
[EventCountry "CHN"]
[TimeControl "5400+30"]

1. Nf3 {[%emt 0:00:38]} d5 {[%emt 0:00:26]} 2. e3 {[%emt 0:00:13]} c5 {[%emt 0:00:42]} 3. d4 {[%emt 0:01:14]} e6 {[%emt 0:00:20]} 4. c4 {[%emt 0:01:19]} Nc6 {[%emt 0:00:37]} 5. Nc3 {[%emt 0:05:02]} Nf6 {[%emt 0:00:45]} 6. a3 {[%emt 0:00:51]} cxd4 {[%emt 0:06:46]} 7. exd4 {[%emt 0:00:41]} dxc4 {[%emt 0:01:38]} 8. Bxc4 {[%emt 0:00:12]} Be7 {[%emt 0:00:18]} 9. O-O {[%emt 0:02:18]} O-O {[%emt 0:00:43]} 10. Re1 {[%emt 0:02:12]} Nd5 {[%emt 0:00:28]} 11. Ba2 {[%emt 0:09:27]} Bf6 {[%emt 0:01:24]} 12. Be3 {[%emt 0:04:11]} Nce7 {[%emt 0:02:00]} 13. Rc1 {[%emt 0:01:32]} b6 {[%emt 0:00:39]} 14. Ne4 {[%emt 0:04:27]} Bb7 {[%emt 0:01:40]} 15. Bb1 {[%emt 0:04:39]} h6 {[%emt 0:06:15]} 16. Qd3 {[%emt 0:03:29]} Nf5 {[%emt 0:14:30]} 17. Bd2 {[%emt 0:12:53]} Re8 {[%emt 0:06:34]} 18. Ng3 {[%emt 0:02:08]} Nde7 {[%emt 0:04:27]} 19. Ne4 {[%emt 0:12:52]} Ng6 {[%emt 0:21:33]} 20. Be3 {[%emt 0:03:47]} Nf8 {[%emt 0:07:07]} 21. Red1 {[%emt 0:01:53]} Nd6 {[%emt 0:04:37]} 22. Nfd2 {[%emt 0:02:09]} Nf5 {[%emt 0:11:30]} 23. Nf3 {[%emt 0:03:36]} Nd6 {[%emt 0:01:21]} 24. Ng3 {[%emt 0:02:20]} Bxf3 {[%emt 0:03:53]} 25. gxf3 {[%emt 0:00:02]} Bg5 {[%emt 0:00:33]} 26. Rc3 {[%emt 0:05:53]} Bxe3 {[%emt 0:00:19]} 27. fxe3 {[%emt 0:00:38]} Qg5 {[%emt 0:01:02]} 28. Kh1 {[%emt 0:00:45]} Rac8 {[%emt 0:00:50]} 29. Rg1 {[%emt 0:01:29]} Rxc3 {[%emt 0:02:03]} 30. Qxc3 {[%emt 0:02:59]} Rc8 {[%emt 0:00:00]} 31. Qd3 {[%emt 0:03:01]} Qb5 {[%emt 0:00:00]} 32. Qxb5 {[%emt 0:03:31]} Nxb5 {[%emt 0:00:00]} 33. Nh5 {[%emt 0:00:25]} g6 {[%emt 0:00:00]} 1/2-1/2

[Event "Chinese Championship-B Women 2024"]
[Site "Liaocheng"]
[Date "2024.04.24"]
[Round "2.5"]
[White "Wu, Shuang(Hlj)"]
[Black "Wang, Xiaoyan"]
[Result "1/2-1/2"]
[WhiteElo "1701"]
[BlackElo "1932"]
[PlyCount "59"]
[EventDate "2024.04.24"]
[EventType "swiss"]
[EventCountry "CHN"]
[TimeControl "5400+30"]

1. d4 {[%emt 0:00:04]} Nf6 {[%emt 0:00:03]} 2. Nf3 {[%emt 0:00:05]} g6 {[%emt 0:00:17]} 3. e3 {[%emt 0:00:09]} Bg7 {[%emt 0:00:40]} 4. Be2 {[%emt 0:00:06]} d6 {[%emt 0:01:20]} 5. O-O {[%emt 0:00:17]} O-O {[%emt 0:00:13]} 6. c4 {[%emt 0:00:17]} Nc6 {[%emt 0:02:28]} 7. Nc3 {[%emt 0:01:49]} e5 {[%emt 0:00:50]} 8. a3 {[%emt 0:09:25]} a5 {[%emt 0:04:54]} 9. b3 {[%emt 0:03:12]} Bf5 {[%emt 0:01:05]} 10. Bb2 {[%emt 0:01:35]} Re8 {[%emt 0:01:39]} 11. d5 {[%emt 0:03:25]} Ne7 {[%emt 0:01:30]} 12. b4 {[%emt 0:01:08]} h6 {[%emt 0:17:30]} 13. Qb3 {[%emt 0:02:06]} b6 {[%emt 0:08:27]} 14. Rfd1 {[%emt 0:04:11]} g5 {[%emt 0:01:44]} 15. Nb5 {[%emt 0:02:48]} Ne4 {[%emt 0:04:25]} 16. Bd3 {[%emt 0:10:54]} Qd7 {[%emt 0:09:19]} 17. Qc2 {[%emt 0:13:08]} Nf6 {[%emt 0:02:55]} 18. Bxf5 {[%emt 0:03:08]} Nxf5 {[%emt 0:00:10]} 19. e4 {[%emt 0:06:50]} Ne7 {[%emt 0:01:53]} 20. Qe2 {[%emt 0:00:26]} Ng6 {[%emt 0:02:31]} 21. g3 {[%emt 0:06:32]} Bf8 {[%emt 0:01:07]} 22. bxa5 {[%emt 0:02:23]} Rxa5 {[%emt 0:01:24]} 23. Bc3 {[%emt 0:00:25]} Ra4 {[%emt 0:02:21]} 24. Bb4 {[%emt 0:02:34]} Rea8 {[%emt 0:00:57]} 25. Ne1 {[%emt 0:03:02]} Be7 {[%emt 0:06:28]} 26. Nc2 {[%emt 0:08:39]} Kh7 {[%emt 0:08:19]} 27. Nc3 {[%emt 0:02:42]} R4a7 {[%emt 0:00:05]} 28. Ne3 {[%emt 0:00:25]} Qh3 {[%emt 0:04:42]} 29. Qf1 {[%emt 0:01:24]} Qd7 {[%emt 0:00:33]} 30. f3 {[%emt 0:03:44]} 1/2-1/2

[Event "Chinese Championship-B Women 2024"]
[Site "Liaocheng"]
[Date "2024.04.24"]
[Round "2.6"]
[White "Jiang, Tianyu"]
[Black "Ding, Yiran"]
[Result "1-0"]
[WhiteElo "1929"]
[BlackElo "1683"]
[PlyCount "63"]
[EventDate "2024.04.24"]
[EventType "swiss"]
[EventCountry "CHN"]
[TimeControl "5400+30"]

1. e4 {[%emt 0:00:05]} c5 {[%emt 0:00:06]} 2. Nf3 {[%emt 0:00:05]} e6 {[%emt 0:00:12]} 3. c3 {[%emt 0:00:42]} Nf6 {[%emt 0:00:24]} 4. Bd3 {[%emt 0:05:30]} d5 {[%emt 0:05:01]} 5. e5 {[%emt 0:00:08]} Nfd7 {[%emt 0:00:27]} 6. Bc2 {[%emt 0:00:59]} Nc6 {[%emt 0:00:52]} 7. d4 {[%emt 0:00:30]} cxd4 {[%emt 0:02:31]} 8. cxd4 {[%emt 0:00:37]} Be7 {[%emt 0:01:22]} 9. Nc3 {[%emt 0:03:26]} O-O {[%emt 0:07:42]} 10. O-O {[%emt 0:00:31]} b6 {[%emt 0:01:26]} 11. Re1 {[%emt 0:04:36]} Ba6 {[%emt 0:03:51]} 12. Bb1 {[%emt 0:05:59]} Qc8 {[%emt 0:08:39]} 13. Qc2 {[%emt 0:06:58]} g6 {[%emt 0:02:00]} 14. Bh6 {[%emt 0:12:43]} Re8 {[%emt 0:04:30]} 15. Qd2 {[%emt 0:11:23]} Bf8 {[%emt 0:21:37]} 16. h4 {[%emt 0:02:15]} Na5 {[%emt 0:00:50]} 17. Qf4 {[%emt 0:06:57]} Nc4 {[%emt 0:11:25]} 18. Nd1 {[%emt 0:06:18]} Qb7 {[%emt 0:05:32]} 19. Bd3 {[%emt 0:04:15]} Rac8 {[%emt 0:01:45]} 20. h5 {[%emt 0:02:11]} Na5 {[%emt 0:02:31]} 21. Bxa6 {[%emt 0:01:19]} Qxa6 {[%emt 0:00:11]} 22. Ne3 {[%emt 0:03:51]} Qd3 {[%emt 0:04:39]} 23. Bxf8 {[%emt 0:03:03]} Nxf8 {[%emt 0:00:15]} 24. Rad1 {[%emt 0:01:55]} Qb5 {[%emt 0:01:12]} 25. Ng4 {[%emt 0:00:27]} Re7 {[%emt 0:00:29]} 26. Qf6 {[%emt 0:00:29]} h6 {[%emt 0:06:15]} 27. Qxe7 {[%emt 0:00:36]} Kg7 {[%emt 0:00:50]} 28. Qf6+ {[%emt 0:00:07]} Kh7 {[%emt 0:00:09]} 29. Qxf7+ {[%emt 0:00:06]} Kh8 {[%emt 0:00:29]} 30. Nxh6 {[%emt 0:00:06]} Nd7 {[%emt 0:00:17]} 31. hxg6 {[%emt 0:00:07]} Qc6 {[%emt 0:02:25]} 32. Qh7# {[%emt 0:00:07]} 1-0

[Event "Chinese Championship-B Women 2024"]
[Site "Liaocheng"]
[Date "2024.04.24"]
[Round "2.7"]
[White "Cao, Jiahui"]
[Black "Zhao, Chenyu"]
[Result "0-1"]
[WhiteElo "1685"]
[BlackElo "1909"]
[PlyCount "116"]
[EventDate "2024.04.24"]
[EventType "swiss"]
[EventCountry "CHN"]
[TimeControl "5400+30"]

1. e4 {[%emt 0:00:02]} c5 {[%emt 0:00:05]} 2. Nf3 {[%emt 0:00:08]} d6 {[%emt 0:00:13]} 3. d4 {[%emt 0:00:07]} cxd4 {[%emt 0:00:04]} 4. Nxd4 {[%emt 0:00:06]} Nf6 {[%emt 0:00:05]} 5. Nc3 {[%emt 0:00:08]} Nc6 {[%emt 0:00:21]} 6. Be2 {[%emt 0:00:15]} e5 {[%emt 0:00:09]} 7. Nf3 {[%emt 0:00:09]} h6 {[%emt 0:00:16]} 8. Be3 {[%emt 0:00:59]} Be6 {[%emt 0:03:53]} 9. Qd2 {[%emt 0:02:09]} a6 {[%emt 0:02:42]} 10. a3 {[%emt 0:01:29]} Be7 {[%emt 0:01:30]} 11. Rd1 {[%emt 0:03:58]} O-O {[%emt 0:01:47]} 12. O-O {[%emt 0:00:34]} Rc8 {[%emt 0:01:34]} 13. Ne1 {[%emt 0:02:35]} Na5 {[%emt 0:03:10]} 14. f4 {[%emt 0:01:26]} Rxc3 {[%emt 0:12:11]} 15. bxc3 {[%emt 0:03:05]} Nxe4 {[%emt 0:00:07]} 16. Qc1 {[%emt 0:00:44]} Nxc3 {[%emt 0:00:11]} 17. Rd2 {[%emt 0:00:50]} Nxe2+ {[%emt 0:00:44]} 18. Rxe2 {[%emt 0:00:17]} Bc4 {[%emt 0:00:05]} 19. Ref2 {[%emt 0:05:34]} Bxf1 {[%emt 0:00:08]} 20. Rxf1 {[%emt 0:00:13]} Nc4 {[%emt 0:01:19]} 21. Nd3 {[%emt 0:08:28]} d5 {[%emt 0:00:55]} 22. fxe5 {[%emt 0:00:23]} Bxa3 {[%emt 0:00:28]} 23. Qe1 {[%emt 0:01:25]} Nxe3 {[%emt 0:00:45]} 24. Qxe3 {[%emt 0:00:07]} Qe7 {[%emt 0:00:59]} 25. Qg3 {[%emt 0:02:08]} Rc8 {[%emt 0:00:50]} 26. Nf4 {[%emt 0:06:21]} Bc5+ {[%emt 0:00:50]} 27. Kh1 {[%emt 0:00:13]} Qxe5 {[%emt 0:00:48]} 28. Qb3 {[%emt 0:02:05]} Bd6 {[%emt 0:08:26]} 29. Qxb7 {[%emt 0:04:59]} Rc4 {[%emt 0:00:20]} 30. Qa8+ {[%emt 0:03:25]} Kh7 {[%emt 0:00:06]} 31. Qxd5 {[%emt 0:00:59]} Rxf4 {[%emt 0:00:37]} 32. Qd3+ {[%emt 0:01:59]} f5 {[%emt 0:00:08]} 33. Rxf4 {[%emt 0:07:02]} Qxf4 {[%emt 0:00:09]} 34. g3 {[%emt 0:00:14]} Qe4+ {[%emt 0:00:03]} 35. Qxe4 {[%emt 0:01:55]} fxe4 {[%emt 0:00:04]} 36. Kg2 {[%emt 0:00:27]} a5 {[%emt 0:00:03]} 37. Kf2 {[%emt 0:00:16]} a4 {[%emt 0:00:05]} 38. Ke3 {[%emt 0:00:05]} a3 {[%emt 0:00:02]} 39. Kxe4 {[%emt 0:00:10]} a2 {[%emt 0:00:03]} 40. Kd5 {[%emt 0:00:15]} a1=Q {[%emt 0:00:05]} 41. Kxd6 {[%emt 0:00:15]} Qd4+ {[%emt 0:00:04]} 42. Kc6 {[%emt 0:00:15]} Qc4+ {[%emt 0:00:03]} 43. Kd6 {[%emt 0:00:07]} Qxc2 {[%emt 0:00:04]} 44. h4 {[%emt 0:00:12]} Qd3+ {[%emt 0:00:04]} 45. Ke6 {[%emt 0:00:10]} Qxg3 {[%emt 0:00:10]} 46. h5 {[%emt 0:00:19]} Qg5 {[%emt 0:00:27]} 47. Kd6 {[%emt 0:00:08]} Qf5 {[%emt 0:00:18]} 48. Kc6 {[%emt 0:00:08]} Qe5 {[%emt 0:00:05]} 49. Kb6 {[%emt 0:00:12]} Qd5 {[%emt 0:00:13]} 50. Kc7 {[%emt 0:00:16]} Qe6 {[%emt 0:00:05]} 51. Kb7 {[%emt 0:00:07]} Qd6 {[%emt 0:00:06]} 52. Ka8 {[%emt 0:00:05]} Qd7 {[%emt 0:00:15]} 53. Kb8 {[%emt 0:00:36]} Kg8 {[%emt 0:00:05]} 54. Ka8 {[%emt 0:00:07]} Kf7 {[%emt 0:00:03]} 55. Kb8 {[%emt 0:00:08]} Ke7 {[%emt 0:00:10]} 56. Ka8 {[%emt 0:00:09]} Kd6 {[%emt 0:00:04]} 57. Kb8 {[%emt 0:00:09]} Kc6 {[%emt 0:00:04]} 58. Ka8 {[%emt 0:00:05]} Qb7# {[%emt 0:00:03]} 0-1

[Event "Chinese Championship-B Women 2024"]
[Site "Liaocheng"]
[Date "2024.04.24"]
[Round "2.8"]
[White "Gao, Muziyan"]
[Black "Peng, Shiyang"]
[Result "1-0"]
[WhiteElo "1891"]
[BlackElo "1661"]
[PlyCount "83"]
[EventDate "2024.04.24"]
[EventType "swiss"]
[EventCountry "CHN"]
[TimeControl "5400+30"]

1. Nf3 {[%emt 0:00:05]} Nf6 {[%emt 0:00:11]} 2. c4 {[%emt 0:00:21]} e6 {[%emt 0:00:28]} 3. g3 {[%emt 0:00:40]} b6 {[%emt 0:00:39]} 4. Bg2 {[%emt 0:00:09]} Bb7 {[%emt 0:00:17]} 5. O-O {[%emt 0:00:31]} c5 {[%emt 0:00:26]} 6. Nc3 {[%emt 0:03:24]} d5 {[%emt 1:31:29]} 7. cxd5 {[%emt 0:08:55]} exd5 {[%emt 0:00:30]} 8. Ne5 {[%emt 0:07:40]} Nc6 {[%emt 0:00:00]} 9. Qa4 {[%emt 0:02:29]} Qd6 {[%emt 0:00:00]} 10. d4 {[%emt 0:16:49]} cxd4 {[%emt 0:00:00]} 11. Nxc6 {[%emt 0:00:54]} Bxc6 {[%emt 0:00:00]} 12. Qxd4 {[%emt 0:00:09]} Be7 {[%emt 0:00:00]} 13. Bf4 {[%emt 0:03:28]} Qc5 {[%emt 0:00:00]} 14. Qd3 {[%emt 0:02:59]} O-O {[%emt 0:00:00]} 15. Rfc1 {[%emt 0:07:36]} Qa5 {[%emt 0:00:00]} 16. Bd2 {[%emt 0:05:28]} Bb4 {[%emt 0:00:00]} 17. a3 {[%emt 0:00:17]} Bxc3 {[%emt 0:00:00]} 18. Bxc3 {[%emt 0:00:12]} Qb5 {[%emt 0:00:00]} 19. Bxf6 {[%emt 0:00:12]} gxf6 {[%emt 0:00:00]} 20. Qc3 {[%emt 0:00:50]} Bb7 {[%emt 0:00:00]} 21. Qxf6 {[%emt 0:00:12]} Qxe2 {[%emt 0:00:00]} 22. Re1 {[%emt 0:00:22]} Qg4 {[%emt 0:00:00]} 23. Re5 {[%emt 0:01:19]} h6 {[%emt 0:00:00]} 24. Qxh6 {[%emt 0:00:07]} f6 {[%emt 0:00:00]} 25. Re7 {[%emt 0:00:50]} Rf7 {[%emt 0:00:00]} 26. Rae1 {[%emt 0:02:39]} Qg7 {[%emt 0:00:00]} 27. Re8+ {[%emt 0:13:39]} Rxe8 {[%emt 0:00:00]} 28. Rxe8+ {[%emt 0:00:04]} Rf8 {[%emt 0:00:00]} 29. Rxf8+ {[%emt 0:00:26]} Kxf8 {[%emt 0:00:00]} 30. Qxg7+ {[%emt 0:00:42]} Kxg7 {[%emt 0:00:00]} 31. f4 {[%emt 0:00:07]} Kf7 {[%emt 0:00:00]} 32. Kf2 {[%emt 0:00:12]} Ke6 {[%emt 0:00:00]} 33. g4 {[%emt 0:00:24]} Ba6 {[%emt 0:00:00]} 34. Ke3 {[%emt 0:23:19]} Kd6 {[%emt 0:00:00]} 35. h4 {[%emt 0:00:00]} Bc8 {[%emt 0:00:00]} 36. f5 {[%emt 0:00:00]} Ke5 {[%emt 0:00:00]} 37. h5 {[%emt 0:00:00]} d4+ {[%emt 0:00:00]} 38. Kd2 {[%emt 0:00:00]} Bxf5 {[%emt 0:00:00]} 39. gxf5 {[%emt 0:00:00]} Kxf5 {[%emt 0:00:00]} 40. Kd3 {[%emt 0:00:00]} Kg5 {[%emt 0:00:00]} 41. Bf3 {[%emt 0:00:00]} f5 {[%emt 0:00:00]} 42. Kxd4 {[%emt 0:00:00]} 1-0

[Event "Chinese Championship-B Women 2024"]
[Site "Liaocheng"]
[Date "2024.04.24"]
[Round "2.9"]
[White "Ji, Yueran"]
[Black "Men, Jiayi"]
[Result "0-1"]
[WhiteElo "1660"]
[BlackElo "1845"]
[PlyCount "96"]
[EventDate "2024.04.24"]
[EventType "swiss"]
[EventCountry "CHN"]
[TimeControl "5400+30"]

1. e4 {[%emt 0:00:03]} d6 {[%emt 0:00:25]} 2. d4 {[%emt 0:00:07]} Nf6 {[%emt 0:00:05]} 3. Nc3 {[%emt 0:00:05]} g6 {[%emt 0:00:35]} 4. f4 {[%emt 0:01:46]} Bg7 {[%emt 0:00:38]} 5. Nf3 {[%emt 1:30:59]} a6 {[%emt 1:31:17]} 6. Bd3 {[%emt 0:00:30]} O-O {[%emt 0:00:30]} 7. e5 {[%emt 0:00:30]} dxe5 {[%emt 0:00:00]} 8. fxe5 {[%emt 0:00:00]} Nd5 {[%emt 0:00:00]} 9. Nxd5 Qxd5 10. O-O {[%emt 0:01:30]} Bg4 {[%emt 0:00:00]} 11. Be3 {[%emt 0:00:00]} c5 {[%emt 0:00:00]} 12. Be2 {[%emt 0:00:00]} cxd4 {[%emt 0:00:00]} 13. Qxd4 {[%emt 0:00:00]} Qxd4 {[%emt 0:00:00]} 14. Bxd4 {[%emt 0:00:00]} Nc6 {[%emt 0:00:00]} 15. Bc3 {[%emt 0:00:00]} Nxe5 {[%emt 0:00:00]} 16. Bxe5 {[%emt 0:00:00]} Bxe5 {[%emt 0:00:00]} 17. h3 {[%emt 0:00:00]} Bxf3 {[%emt 0:00:00]} 18. Bxf3 {[%emt 0:00:00]} Rab8 {[%emt 0:00:00]} 19. Rad1 {[%emt 0:00:00]} Bd6 {[%emt 0:00:00]} 20. c4 {[%emt 0:00:00]} b5 {[%emt 0:00:00]} 21. cxb5 {[%emt 0:00:00]} Rxb5 {[%emt 0:00:00]} 22. Rd2 {[%emt 0:00:00]} Kg7 {[%emt 0:00:00]} 23. b3 {[%emt 0:00:00]} Rc5 {[%emt 0:00:00]} 24. Rd5 {[%emt 0:00:00]} Rfc8 {[%emt 0:00:00]} 25. Rxc5 {[%emt 0:00:00]} Rxc5 {[%emt 0:00:00]} 26. Be2 {[%emt 0:00:00]} a5 {[%emt 0:00:00]} 27. Bc4 {[%emt 0:00:00]} f6 {[%emt 0:00:00]} 28. Rd1 {[%emt 0:00:00]} Kh6 {[%emt 0:00:00]} 29. Kf2 {[%emt 0:00:00]} Kg5 {[%emt 0:00:00]} 30. Rd4 {[%emt 0:00:00]} Rf5+ {[%emt 0:00:00]} 31. Ke2 {[%emt 0:00:00]} Bc5 {[%emt 0:00:00]} 32. Rg4+ {[%emt 0:00:00]} Kh6 {[%emt 0:00:00]} 33. Kd3 {[%emt 0:00:00]} Rf2 {[%emt 0:00:00]} 34. a4 {[%emt 0:00:00]} f5 {[%emt 0:00:00]} 35. Rg3 {[%emt 0:00:00]} Bd6 {[%emt 0:00:00]} 36. Re3 {[%emt 0:00:13]} Rxg2 {[%emt 0:00:00]} 37. Bd5 {[%emt 0:00:14]} Rg3 {[%emt 0:00:00]} 38. Rxg3 {[%emt 0:00:37]} Bxg3 {[%emt 0:00:00]} 39. Ke3 {[%emt 0:01:01]} Bd6 {[%emt 0:00:00]} 40. Bc4 {[%emt 0:01:17]} e5 {[%emt 0:00:00]} 41. Be2 {[%emt 0:00:54]} Kg5 {[%emt 0:00:00]} 42. Bf1 {[%emt 0:01:59]} Bc5+ {[%emt 0:00:00]} 43. Kd3 {[%emt 0:02:20]} Kf4 {[%emt 0:00:00]} 44. Kc4 {[%emt 0:00:34]} Bb4 {[%emt 0:00:00]} 45. Kd3 {[%emt 0:00:29]} e4+ {[%emt 0:00:00]} 46. Ke2 {[%emt 0:01:16]} Kg3 {[%emt 0:00:00]} 47. Ke3 {[%emt 0:01:59]} Bc5+ {[%emt 0:00:00]} 48. Ke2 {[%emt 0:00:08]} f4 {[%emt 0:00:00]} 0-1